fUST/lending_fUST_20260112
["ID","MTS","AMOUNT","RATE_DAILY","PERIOD"]
[401361390,1768155045439,-1288.05151213,0.00014795,2]
[401361392,1768155045448,-1500.0,0.00014795,2]
[401361394,1768155045458,-1500.0,0.00014795,2]
[401361396,1768155045467,-1500.0,0.00014795,2]
[401361398,1768155045476,-1000.0,0.00014795,2]
[401361400,1768155045485,-1500.0,0.00014795,2]
[401361402,1768155045494,-1500.0,0.00014795,2]
[401361404,1768155045503,-1500.0,0.00014795,2]
[401361406,1768155045512,-1500.0,0.00014795,2]
[401361408,1768155045521,-1500.0,0.00014795,2]
[401361410,1768155045530,-1500.0,0.00014795,2]
[401361412,1768155045539,-210.18768542,0.00014795,2]
[401361413,1768155045548,-1509.97698878,0.00014795,2]
[401361416,1768155045559,-1500.0,0.00014795,2]
[401361418,1768155045570,-1500.0,0.00014795,2]
[401361420,1768155045580,-375.35271766,0.00014795,2]
[401361422,1768155045591,-1500.0,0.00014795,2]
[401361423,1768155045600,-1002.56553603,0.00014795,2]
[401361425,1768155045610,-1001.33075681,0.00014795,2]
[401361427,1768155045620,-1500.0,0.00014795,2]
[401361429,1768155045630,-1500.0,0.00014795,2]
[401361431,1768155045639,-1500.0,0.00014795,2]
[401361433,1768155045648,-1500.0,0.00014795,2]
[401361435,1768155045657,-1500.0,0.00014795,2]
[401361437,1768155045666,-6266.0,0.00014795,2]
[401361439,1768155045675,-151.0,0.000148,2]
[401361441,1768155045684,-100000.0,0.00014882,2]
[401361443,1768155045694,-908.46095488,0.000149,2]
[401361445,1768155045703,-513.35365922,0.00014916,2]
[401361446,1768155045712,-282.09902954,0.00014916,2]
[401361448,1768155045724,-1985.3091038,0.00014916,2]
[401361450,1768155045735,-2000.0,0.00014916,2]
[401361452,1768155045744,-2000.0,0.00014916,2]
[401361454,1768155045753,-2000.0,0.00014916,2]
[401361456,1768155045763,-2000.0,0.00014916,2]
[401361458,1768155045772,-2000.0,0.00014916,2]
[401361460,1768155045781,-263.96834089,0.00014916,2]
[401361462,1768155045790,-2000.0,0.00014916,2]
[401361464,1768155045799,-2000.0,0.00014916,2]
[401361466,1768155045808,-2000.0,0.00014916,2]
[401361468,1768155045817,-223.48736773,0.00014916,2]
[401361470,1768155045826,-2000.0,0.00014916,2]
[401361471,1768155045836,-2000.0,0.00014916,2]
[401361473,1768155045845,-2000.0,0.00014916,2]
[401361475,1768155045855,-2000.0,0.00014916,2]
[401361477,1768155045864,-2113.36442406,0.00014916,2]
[401361479,1768155045873,-2000.0,0.00014916,2]
[401361481,1768155045882,-1496.03596481,0.00014916,2]
[401361483,1768155045892,-1103.18109463,0.00014916,2]
[401361485,1768155045901,-1151.39515074,0.00014916,2]
[401361487,1768155045910,-2000.0,0.00014916,2]
[401361489,1768155045919,-2000.0,0.00014916,2]
[401361491,1768155045929,-6266.0,0.00014932,2]
[401361493,1768155045939,-177.92667681,0.00014932,2]
[401361495,1768155045948,-279.25171681,0.00014932,2]
[401361497,1768155045956,-1000.0,0.00015,2]
[401361498,1768155045965,-806.360887,0.00015068,2]
[401361501,1768155045975,-800.0,0.00015068,2]
[401361503,1768155045985,-154502.517058,0.00015069,2]
[401361505,1768155045994,-250.0,0.00015069,2]
[401361507,1768155046004,-6266.0,0.00015069,2]
[401361509,1768155046013,-3862.33347776,0.00015206,2]
[401361511,1768155046023,-6266.0,0.00015206,2]
[401361512,1768155046033,-559.01,0.000153,2]
[401361513,1768155046042,-861.15,0.000153,2]
[401361514,1768155046052,-1200.0,0.00015316,2]
[401361515,1768155046061,-1015.29707634,0.00015342,2]
[401361516,1768155046071,-1157.07022264,0.00015342,2]
[401361518,1768155046081,-2000.0,0.00015342,2]
[401361519,1768155046091,-1839.58703801,0.00015342,2]
[401361520,1768155046100,-2000.0,0.00015342,2]
[401361521,1768155046110,-500.79965419,0.00015342,2]
[401361522,1768155046119,-384.87792171,0.00015342,2]
[401361523,1768155046129,-736.28209818,0.00015342,2]
[401361524,1768155046138,-502.98816345,0.00015342,2]
[401361525,1768155046148,-507.57819343,0.00015342,2]
[401361526,1768155046232,-2000.0,0.00015342,2]
[401361527,1768155046245,-2000.0,0.00015342,2]
[401361528,1768155046254,-2000.0,0.00015342,2]
[401361529,1768155046263,-2000.0,0.00015342,2]
[401361530,1768155046272,-2148.74912763,0.00015342,2]
[401361531,1768155046282,-2000.0,0.00015342,2]
[401361532,1768155046291,-482.84709438,0.00015342,2]
[401361533,1768155046300,-2000.0,0.00015342,2]
[401361534,1768155046310,-516.76085072,0.00015342,2]
[401361535,1768155046319,-2000.0,0.00015342,2]
[401361536,1768155046329,-804.72135436,0.00015342,2]
[401361537,1768155046339,-2000.0,0.00015342,2]
[401361538,1768155046348,-2000.0,0.00015342,2]
[401361539,1768155046357,-1174.14847626,0.00015342,2]
[401361540,1768155046367,-2000.0,0.00015342,2]
[401361541,1768155046376,-2000.0,0.00015342,2]
[401361542,1768155046385,-1025.59078617,0.00015342,2]
[401361543,1768155046394,-6266.0,0.00015343,2]
[401361544,1768155046403,-2500.0,0.00015464,2]
[401361545,1768155046412,-2500.0,0.00015464,2]
[401361546,1768155046421,-1782.0683631,0.00015464,2]
[401361547,1768155046431,-2500.0,0.00015464,2]
[401361548,1768155046441,-2500.0,0.00015464,2]
[401361549,1768155046450,-502.33157316,0.00015464,2]
[401361550,1768155046460,-2500.0,0.00015464,2]
[401361551,1768155046469,-2500.0,0.00015464,2]
[401361552,1768155046479,-2500.0,0.00015464,2]
[401361553,1768155046488,-2500.0,0.00015464,2]
[401361554,1768155046498,-2500.0,0.00015464,2]
[401361555,1768155046507,-6266.0,0.0001548,2]
[401361556,1768155046516,-6266.0,0.00015617,2]
[401361557,1768155046525,-6266.0,0.00015754,2]
[401361558,1768155046533,-559.01,0.000158,2]
[401361559,1768155046543,-861.15,0.000158,2]
[401361560,1768155046551,-1500.0,0.00015864,2]
[401361561,1768155046564,-1097.05305078,0.0001589,2]
[401361562,1768155046573,-1140.95571878,0.0001589,2]
[401361563,1768155046581,-746.08427355,0.0001589,2]
[401361564,1768155046590,-2500.0,0.0001589,2]
[401361565,1768155046599,-504.51727604,0.0001589,2]
[401361566,1768155046607,-926.89565163,0.0001589,2]
[401361567,1768155046617,-2500.0,0.0001589,2]
[401361568,1768155046627,-2500.0,0.0001589,2]
[401361569,1768155046636,-2500.0,0.0001589,2]
[401361570,1768155046645,-2500.0,0.0001589,2]
[401361571,1768155046655,-2500.0,0.0001589,2]
[401361572,1768155046664,-589.88646751,0.0001589,2]
[401361573,1768155046673,-2500.0,0.0001589,2]
[401361574,1768155046682,-6266.0,0.00015891,2]
[401361575,1768155046691,-11773.83379711,0.00015912,2]
[401361576,1768155046699,-681.88758361,0.00016008,2]
[401361577,1768155046708,-3006.66545063,0.00016012,2]
[401361578,1768155046717,-3000.0,0.00016012,2]
[401361579,1768155046726,-3000.0,0.00016012,2]
[401361580,1768155046735,-1897.40421659,0.00016012,2]
[401361581,1768155046744,-3000.0,0.00016012,2]
[401361582,1768155046753,-3000.0,0.00016012,2]
[401361583,1768155046762,-3000.0,0.00016012,2]
[401361584,1768155046771,-3000.0,0.00016012,2]
[401361585,1768155046780,-3000.0,0.00016012,2]
[401361586,1768155046789,-6266.0,0.00016028,2]
[401361587,1768155046798,-1101.71937705,0.00016164,2]
[401361588,1768155046807,-6266.0,0.00016165,2]
[401361589,1768155046816,-559.01,0.000163,2]
[401361590,1768155046825,-861.15,0.000163,2]
[401361591,1768155046834,-6266.0,0.00016302,2]
[401361592,1768155046844,-1800.0,0.00016412,2]
[401361593,1768155046852,-164.19129262,0.00016438,2]
[401361594,1768155046861,-3000.0,0.00016438,2]
[401361595,1768155046871,-3000.0,0.00016438,2]
[401361596,1768155046880,-1134.65901332,0.00016438,2]
[401361597,1768155046889,-3000.0,0.00016438,2]
[401361598,1768155046899,-3000.0,0.00016438,2]
[401361599,1768155046908,-3000.0,0.00016438,2]
[401361600,1768155046917,-3000.0,0.00016438,2]
[401361601,1768155046927,-260.15865923,0.00016438,2]
[401361602,1768155046936,-6266.0,0.00016439,2]
[401361603,1768155046945,-3500.0,0.0001656,2]
[401361604,1768155046954,-3500.0,0.0001656,2]
[401361605,1768155046963,-2988.31906632,0.0001656,2]
[401361606,1768155046971,-3500.0,0.0001656,2]
[401361607,1768155046980,-3500.0,0.0001656,2]
[401361608,1768155046989,-3500.0,0.0001656,2]
[401361609,1768155046998,-3500.0,0.0001656,2]
[401361610,1768155047007,-643.73891296,0.00016562,7]
[401361611,1768155047015,-6266.0,0.00016576,2]
[401361612,1768155047025,-151.0,0.000167,2]
[401361613,1768155047034,-6266.0,0.00016713,2]
[401361614,1768155047043,-559.01,0.000168,2]
[401361615,1768155047052,-861.15,0.000168,2]
[401361616,1768155047061,-6266.0,0.0001685,2]
[401361617,1768155047071,-2100.0,0.0001696,2]
[401361618,1768155047080,-3500.0,0.00016986,2]
[401361619,1768155047090,-3500.0,0.00016986,2]
[401361620,1768155047099,-3500.0,0.00016986,2]
[401361621,1768155047109,-1502.60955562,0.00016986,2]
[401361622,1768155047118,-1052.92932298,0.00016986,2]
[401361623,1768155047128,-3500.0,0.00016986,2]
[401361624,1768155047138,-6266.0,0.00016987,2]
[401361625,1768155047148,-4000.0,0.00017108,2]
[401361626,1768155047157,-4000.0,0.00017108,2]
[401361627,1768155047166,-4000.0,0.00017108,2]
[401361628,1768155047175,-4000.0,0.00017108,2]
[401361629,1768155047184,-4000.0,0.00017108,2]
[401361630,1768155047194,-4000.0,0.00017108,2]
[401361631,1768155047204,-6266.0,0.00017124,2]
[401361632,1768155047214,-1043.43413919,0.00017193,2]
[401361633,1768155047223,-191.05573565,0.00017193,2]
[401361634,1768155047233,-6266.0,0.00017261,2]
[401361635,1768155047248,-559.01,0.000173,2]
[401361636,1768155047256,-861.15,0.000173,2]
[401361637,1768155047265,-6266.0,0.00017398,2]
[401361638,1768155047275,-5000.0,0.00017412,2]
[401361639,1768155047285,-2400.0,0.00017508,2]
[401361640,1768155047294,-4000.0,0.00017534,2]
[401361641,1768155047304,-4000.0,0.00017534,2]
[401361642,1768155047314,-4000.0,0.00017534,2]
[401361643,1768155047327,-2578.16970935,0.00017534,2]
[401361644,1768155047338,-6284.44462292,0.00017535,2]
[401361645,1768155047349,-1520.77887688,0.00017656,2]
[401361646,1768155047359,-4500.0,0.00017656,2]
[401361647,1768155047368,-4500.0,0.00017656,2]
[401361648,1768155047378,-4500.0,0.00017656,2]
[401361649,1768155047387,-3378.46600243,0.00017656,2]
[401361650,1768155047397,-2500.0,0.00017656,2]
[401361651,1768155047406,-559.01,0.000178,2]
[401361652,1768155047415,-861.15,0.000178,2]
[401361653,1768155047425,-643.73891296,0.00017918,8]
[401361654,1768155047434,-753.24791213,0.00018008,2]
[401361655,1768155047443,-1344.72420012,0.00018056,2]
[401361656,1768155047452,-4500.0,0.00018082,2]
[401361657,1768155047462,-4500.0,0.00018082,2]
[401361658,1768155047472,-4500.0,0.00018082,2]
[401361659,1768155047481,-306.0,0.00018193,2]
[401361660,1768155047491,-2495.04726907,0.00018204,2]
[401361661,1768155047501,-5000.0,0.00018204,2]
[401361662,1768155047510,-5000.0,0.00018204,2]
[401361663,1768155047519,-11773.83379707,0.00018288,2]
[401361664,1768155047529,-559.01,0.000183,2]
[401361665,1768155047538,-861.15,0.000183,2]
[401361666,1768155047547,-366.0,0.00018341,2]
[401361667,1768155047557,-806.360887,0.00018493,2]
[401361668,1768155047566,-438.0,0.00018494,2]
[401361669,1768155047575,-151.0,0.000186,2]
[401361670,1768155047584,-5000.0,0.0001863,2]
[401361671,1768155047594,-5000.0,0.0001863,2]
[401361672,1768155047603,-5000.0,0.0001863,2]
[401361673,1768155047613,-6527.95089535,0.00018752,2]
[401361674,1768155047622,-5500.0,0.00018752,2]
[401361675,1768155047701,-3821.06911742,0.00018752,2]
[401361676,1768155047711,-5000.0,0.00018863,2]
[401361677,1768155047720,-559.01,0.000189,2]
[401361678,1768155047729,-303.10001607,0.000189,2]
[401361679,1768155047738,-861.15,0.000189,2]
[401361680,1768155047747,-242.62689371,0.00019178,2]
[401361681,1768155047757,-5500.0,0.00019178,2]
[401361682,1768155047766,-2918.97723055,0.00019178,2]
[401361683,1768155047775,-5500.0,0.00019178,2]
[401361684,1768155047784,-34058.26,0.000192,2]
[401361685,1768155047793,-162.99,0.000192,2]
[401361686,1768155047803,-164.08,0.000192,2]
[401361687,1768155047812,-3271.44,0.000192,2]
[401361688,1768155047821,-167.64,0.000192,2]
[401361689,1768155047829,-643.73891296,0.00019274,10]
[401361690,1768155047839,-6000.0,0.000193,2]
[401361691,1768155047848,-559.01,0.000194,2]
[401361692,1768155047857,-861.15,0.000194,2]
[401361693,1768155047866,-1041.66666667,0.00019643,2]
[401361694,1768155047875,-6000.0,0.00019726,2]
[401361695,1768155047885,-6000.0,0.00019726,2]
[401361696,1768155047894,-732.45700431,0.00019848,2]
[401361697,1768155047903,-559.01,0.000199,2]
[401361698,1768155047912,-861.15,0.000199,2]
[401361699,1768155047921,-151.55000802,0.0002,2]
[401361700,1768155047931,-824.60824065,0.00020008,2]
[401361701,1768155047940,-961.92726002,0.00020274,2]
[401361702,1768155047950,-6500.0,0.00020274,2]
[401361703,1768155047959,-559.01,0.000204,2]
[401361704,1768155047968,-861.15,0.000204,2]
[401361705,1768155047977,-151.0,0.00020451,2]
[401361706,1768155047986,-156.587,0.00020451,2]
[401361707,1768155047995,-152.09143049,0.00020451,2]
[401361708,1768155048004,-151.0,0.00020451,2]
[401361709,1768155048013,-151.0,0.00020451,2]
[401361710,1768155048023,-500.0,0.00020451,2]
[401361711,1768155048032,-514.84070869,0.00020451,2]
[401361712,1768155048042,-151.0,0.00020451,2]
[401361713,1768155048051,-151.0,0.00020451,2]
[401361714,1768155048061,-500.0,0.00020451,2]
[401361715,1768155048071,-311.85701,0.00020451,2]
[401361716,1768155048081,-151.0,0.00020451,2]
[401361717,1768155048091,-500.0,0.00020451,2]
[401361718,1768155048101,-2487.15318209,0.00020451,2]
[401361719,1768155048111,-151.0,0.00020451,2]
[401361720,1768155048120,-500.0,0.00020451,2]
[401361721,1768155048129,-250.0,0.00020451,2]
[401361722,1768155048139,-151.0,0.00020451,2]
[401361723,1768155048148,-500.0,0.00020451,2]
[401361724,1768155048157,-151.0,0.00020451,2]
[401361725,1768155048167,-250.0,0.00020451,2]
[401361726,1768155048176,-151.0,0.00020451,2]
[401361727,1768155048186,-500.0,0.00020451,2]
[401361728,1768155048195,-151.0,0.00020451,2]
[401361729,1768155048205,-250.0,0.00020451,2]
[401361730,1768155048214,-151.0,0.00020451,2]
[401361731,1768155048223,-500.0,0.00020451,2]
[401361732,1768155048232,-151.0,0.00020451,2]
[401361733,1768155048242,-250.0,0.00020451,2]
[401361734,1768155048253,-151.0,0.00020451,2]
[401361735,1768155048263,-500.0,0.00020451,2]
[401361736,1768155048272,-151.0,0.00020451,2]
[401361737,1768155048282,-265.04542702,0.00020451,2]
[401361738,1768155048292,-151.0,0.00020451,2]
[401361740,1768155048301,-151.0,0.00020451,2]
[401361741,1768155048311,-500.0,0.00020451,2]
[401361744,1768155048323,-151.0,0.00020451,2]
[401361746,1768155048333,-500.0,0.00020451,2]
[401361747,1768155048342,-151.0,0.00020451,2]
[401361748,1768155048351,-151.0,0.00020451,2]
[401361749,1768155048361,-500.0,0.00020451,2]
[401361751,1768155048371,-151.0,0.00020451,2]
[401361752,1768155048381,-151.0,0.00020451,2]
[401361755,1768155048391,-151.0,0.00020451,2]
[401361756,1768155048401,-151.0,0.00020451,2]
[401361757,1768155048411,-151.0,0.00020451,2]
[401361758,1768155048420,-500.0,0.00020451,2]
[401361759,1768155048430,-151.0,0.00020451,2]
[401361760,1768155048439,-151.0,0.00020451,2]
[401361761,1768155048449,-151.0,0.00020451,2]
[401361762,1768155048459,-500.0,0.00020451,2]
[401361763,1768155048469,-151.0,0.00020451,2]
[401361764,1768155048479,-151.0,0.00020451,2]
[401361765,1768155048489,-151.0,0.00020451,2]
[401361766,1768155048499,-500.0,0.00020451,2]
[401361767,1768155048508,-250.0,0.00020451,2]
[401361768,1768155048518,-151.0,0.00020451,2]
[401361769,1768155048527,-151.0,0.00020451,2]
[401361770,1768155048535,-151.0,0.00020451,2]
[401361771,1768155048544,-250.0,0.00020451,2]
[401361772,1768155048553,-151.0,0.00020451,2]
[401361773,1768155048562,-151.0,0.00020451,2]
[401361774,1768155048571,-151.0,0.00020451,2]
[401361775,1768155048580,-250.0,0.00020451,2]
[401361776,1768155048590,-151.0,0.00020451,2]
[401361777,1768155048600,-151.0,0.00020451,2]
[401361778,1768155048609,-151.0,0.00020451,2]
[401361779,1768155048619,-250.0,0.00020451,2]
[401361780,1768155048628,-151.0,0.00020451,2]
[401361781,1768155048638,-151.0,0.00020451,2]
[401361782,1768155048647,-151.0,0.00020451,2]
[401361783,1768155048655,-252.94566259,0.00020451,2]
[401361784,1768155048664,-151.0,0.00020451,2]
[401361785,1768155048674,-151.0,0.00020451,2]
[401361786,1768155048683,-151.0,0.00020451,2]
[401361787,1768155048692,-151.0,0.00020451,2]
[401361788,1768155048701,-151.0,0.00020451,2]
[401361789,1768155048709,-151.0,0.00020451,2]
[401361790,1768155048718,-151.0,0.00020451,2]
[401361791,1768155048727,-151.0,0.00020451,2]
[401361792,1768155048736,-151.0,0.00020451,2]
[401361793,1768155048745,-30000.0,0.00020451,2]
[401361794,1768155048754,-151.0,0.00020451,2]
[401361795,1768155048764,-151.0,0.00020451,2]
[401361796,1768155048774,-151.0,0.00020451,2]
[401361797,1768155048784,-151.0,0.00020451,2]
[401361798,1768155048793,-151.0,0.00020451,2]
[401361799,1768155048802,-151.0,0.00020451,2]
[401361800,1768155048811,-151.0,0.00020451,2]
[401361801,1768155048821,-151.0,0.00020451,2]
[401361802,1768155048830,-151.0,0.00020451,2]
[401361803,1768155048840,-151.0,0.00020451,2]
[401361804,1768155048849,-151.0,0.00020451,2]
[401361805,1768155048858,-151.0,0.00020451,2]
[401361806,1768155048867,-151.0,0.00020451,2]
[401361807,1768155048877,-151.0,0.00020451,2]
[401361808,1768155048887,-151.0,0.00020451,2]
[401361809,1768155048896,-151.0,0.00020451,2]
[401361810,1768155048906,-151.0,0.00020451,2]
[401361811,1768155048915,-151.0,0.00020451,2]
[401361812,1768155048925,-151.0,0.00020451,2]
[401361813,1768155048934,-151.0,0.00020451,2]
[401361814,1768155048943,-151.0,0.00020451,2]
[401361815,1768155048953,-151.0,0.00020451,2]
[401361816,1768155048962,-250.0,0.00020451,2]
[401361817,1768155048971,-241.8234162,0.00020451,2]
[401361818,1768155049047,-152.53645226,0.00020451,2]
[401361819,1768155049063,-250.0,0.00020451,2]
[401361820,1768155049073,-250.0,0.00020451,2]
[401361821,1768155049083,-250.0,0.00020451,2]
[401361822,1768155049093,-250.0,0.00020451,2]
[401361823,1768155049103,-250.0,0.00020451,2]
[401361824,1768155049113,-250.0,0.00020451,2]
[401361825,1768155049123,-250.0,0.00020451,2]
[401361826,1768155049133,-250.0,0.00020451,2]
[401361827,1768155049143,-2030.296672,0.00020451,2]
[401361828,1768155049153,-151.0,0.000205,3]
[401361829,1768155049163,-764.1,0.00020621,2]
[401361830,1768155049172,-643.73891296,0.0002063,11]
[401361831,1768155049182,-11773.83379707,0.00020664,2]
[401361832,1768155049191,-7000.0,0.00020822,2]
[401361833,1768155049200,-559.01,0.000209,2]
[401361834,1768155049210,-861.15,0.000209,2]
[401361835,1768155049220,-533.88981491,0.00020999,2]
[401361836,1768155049230,-323.39571937,0.00020999,2]
[401361837,1768155049241,-2579.17784983,0.00020999,2]
[401361838,1768155049254,-31110.0,0.00020999,2]
[401361839,1768155049264,-7123.1209168,0.0002137,2]
[401361840,1768155049273,-559.01,0.000214,2]
[401361841,1768155049282,-34058.26,0.000214,2]
[401361842,1768155049293,-3271.44,0.000214,2]
[401361843,1768155049303,-151.0,0.000214,2]
[401361844,1768155049313,-221.941164,0.000214,2]
[401361845,1768155049324,-221.941164,0.000214,2]
[401361846,1768155049334,-221.941164,0.000214,2]
[401361847,1768155049344,-221.941164,0.000214,2]
[401361848,1768155049354,-861.15,0.000214,2]
[401361849,1768155049363,-553.64373807,0.00021547,2]
[401361850,1768155049373,-335.36136099,0.00021547,2]
[401361851,1768155049383,-2674.60743027,0.00021547,2]
[401361852,1768155049393,-32261.07,0.00021547,2]
[401361853,1768155049402,-171.46,0.00021644,2]
[401361854,1768155049412,-171.46,0.00021677,2]
[401361855,1768155049422,-559.01,0.000219,2]
[401361856,1768155049432,-861.15,0.000219,2]
[401361857,1768155049441,-806.360887,0.00021918,2]
[401361858,1768155049454,-151.0,0.00021918,2]
[401361859,1768155049464,-151.0,0.00021918,2]
[401361860,1768155049474,-151.0,0.00021918,2]
[401361861,1768155049484,-152.567384,0.00021918,2]
[401361862,1768155049494,-151.0,0.00021918,2]
[401361863,1768155049505,-161.662681,0.00021918,2]
[401361864,1768155049515,-643.73891296,0.00021986,13]
[401361865,1768155049525,-895.96856917,0.00022008,2]
[401361866,1768155049535,-574.12855637,0.00022095,2]
[401361867,1768155049544,-347.76973134,0.00022095,2]
[401361868,1768155049554,-2773.56790519,0.00022095,2]
[401361869,1768155049564,-30394.36634057,0.00022095,2]
[401361870,1768155049574,-1980.9538292,0.00022098,2]
[401361871,1768155049583,-764.1,0.0002211,2]
[401361872,1768155049593,-342.94,0.00022147,2]
[401361873,1768155049602,-151.0,0.000224,9]
[401361874,1768155049613,-559.01,0.000224,2]
[401361875,1768155049623,-861.15,0.000224,2]
[401361876,1768155049633,-300.0,0.00022466,2]
[401361877,1768155049641,-171.46,0.0002258,2]
[401361878,1768155049651,-595.37131296,0.00022643,2]
[401361879,1768155049660,-360.6372114,0.00022643,2]
[401361880,1768155049670,-2876.18991768,0.00022643,2]
[401361881,1768155049680,-155.5739919,0.0002292,5]
[401361882,1768155049690,-559.01,0.00023,2]
[401361883,1768155049700,-861.15,0.00023,2]
[401361884,1768155049711,-450.0,0.00023014,2]
[401361885,1768155049722,-11773.83379707,0.0002304,2]
[401361886,1768155049734,-2000.0,0.00023156,7]
[401361887,1768155049745,-6527.95089535,0.00023176,2]
[401361888,1768155049756,-617.40005154,0.00023191,2]
[401361889,1768155049766,-497.54745077,0.00023191,2]
[401361890,1768155049778,-2982.60894464,0.00023191,2]
[401361891,1768155049788,-643.73891296,0.00023342,14]
[401361892,1768155049798,-34058.26,0.000234,2]
[401361893,1768155049811,-162.99,0.000234,7]
[401361894,1768155049821,-164.08,0.000234,7]
[401361895,1768155049832,-3271.44,0.000234,14]
[401361896,1768155049842,-559.01,0.000235,2]
[401361897,1768155049851,-728.329358,0.000235,2]
[401361898,1768155049860,-728.329358,0.000235,2]
[401361899,1768155049871,-728.329358,0.000235,2]
[401361900,1768155049882,-728.329358,0.000235,2]
[401361901,1768155049892,-151.0,0.000235,2]
[401361902,1768155049903,-151.0,0.000235,2]
[401361903,1768155049913,-1638.845663,0.000235,2]
[401361904,1768155049923,-1638.845663,0.000235,2]
[401361905,1768155049932,-1638.845663,0.000235,2]
[401361906,1768155049942,-1638.845663,0.000235,2]
[401361907,1768155049951,-499.381508,0.000235,2]
[401361908,1768155049962,-499.381508,0.000235,2]
[401361909,1768155049971,-499.381508,0.000235,2]
[401361910,1768155049980,-499.381508,0.000235,2]
[401361911,1768155049989,-319.326659,0.000235,2]
[401361912,1768155049998,-319.326659,0.000235,2]
[401361913,1768155050007,-319.326659,0.000235,2]
[401361914,1768155050017,-151.0,0.000235,2]
[401361915,1768155050026,-151.0,0.000235,2]
[401361916,1768155050035,-319.326659,0.000235,2]
[401361917,1768155050043,-323.453426,0.000235,2]
[401361918,1768155050052,-323.453426,0.000235,2]
[401361919,1768155050063,-323.453426,0.000235,2]
[401361920,1768155050072,-323.453426,0.000235,2]
[401361921,1768155050082,-151.0,0.000235,2]
[401361922,1768155050092,-151.0,0.000235,2]
[401361923,1768155050102,-151.0,0.000235,2]
[401361924,1768155050113,-151.0,0.000235,2]
[401361925,1768155050123,-861.15,0.000235,2]
[401361926,1768155050132,-600.0,0.00023562,2]
[401361927,1768155050142,-764.1,0.00023599,2]
[401361928,1768155050153,-536.57023693,0.00023719,2]
[401361929,1768155050163,-2146.28094771,0.00023719,2]
[401361930,1768155050173,-304.49966873,0.00023719,2]
[401361931,1768155050183,-358.76144416,0.00023719,2]
[401361932,1768155050192,-1435.04577665,0.00023719,2]
[401361933,1768155050202,-3228.85299747,0.00023719,2]
[401361934,1768155050212,-5740.18310661,0.00023719,2]
[401361935,1768155050222,-640.24385345,0.00023739,2]
[401361936,1768155050232,-3092.96547559,0.00023739,2]
[401361937,1768155050242,-4829.13213234,0.00023882,2]
[401361938,1768155050254,-8969.03610408,0.00023882,2]
[401361939,1768155050264,-431.088,0.00023959,5]
[401361940,1768155050273,-178.052,0.00023959,5]
[401361941,1768155050282,-559.01,0.00024,2]
[401361942,1768155050294,-861.15,0.00024,2]
[401361943,1768155050303,-967.32889769,0.00024008,2]
[401361944,1768155050379,-5319.80823575,0.00024015,2]
[401361945,1768155050389,-4173.73655674,0.00024099,2]
[401361946,1768155050399,-763.45871967,0.00024099,2]
[401361947,1768155050410,-733.98308473,0.0002411,2]
[401361948,1768155050421,-663.93287602,0.00024287,2]
[401361949,1768155050431,-3207.40519818,0.00024287,2]
[401361950,1768155050441,-151.0,0.000243,10]
[401361951,1768155050452,-244.9984182,0.00024329,12]
[401361952,1768155050463,-167.64,0.000244,7]
[401361953,1768155050475,-559.01,0.000245,2]
[401361954,1768155050486,-861.15,0.000245,2]
[401361955,1768155050496,-7000.0,0.000246,3]
[401361956,1768155050507,-500.0,0.00024658,2]